Cogmind - Beta 16.1 @@@ ROGUE MODE // 2026.02.23 @ 16:27:50 Player: Zish Result: Destroyed by G-34 Mercenary with Small Laser Performance ------------- Evolutions (0) 0 Regions Visited (1) 200 Robots Destroyed (27) 135 Value Destroyed (562) 562 Prototype IDs (0) 0 Alien Tech Used (0) 0 Bonus (0) 0 TOTAL SCORE: 897 Bonus ------- None Cogmind --------- Core Integrity 0/250 Matter 300/300 Energy 100/100 System Corruption 0% Temperature Cool (12) Movement Core (400) Ox7 Location -10/Materials Parts ------- > --- POWER (1) -------- (None) > --- PROPULSION (2) --- (None) > --- UTILITY (2) ------ Large Storage Unit > --- WEAPON (2) ------- Mining Claw > --- INVENTORY (15) --- Light Nuclear Core Light Treads Light Treads Hacking Suite Medium Laser Small Laser Grenade Launcher Datajack Peak State ------------ > --- POWER ------------ Light Ion Engine > --- PROPULSION ------- Light Treads Light Treads > --- UTILITY ---------- Small Storage Unit Light Armor Plating > --- WEAPON ----------- Medium Laser Light Assault Rifle > --- INVENTORY -------- Light Ion Engine Light Treads Light Treads Hacking Suite Small Laser Grenade Launcher Datajack Mining Claw [Rating: 8] Favorites ----------- Power Light Ion Engine Engine Light Ion Engine Propulsion Light Treads Treads Light Treads Utility Small Storage Unit Storage Small Storage Unit Protection Light Armor Plating Weapon Light Assault Rifle Energy Gun Medium Laser Ballistic Gun Light Assault Rifle Slashing Weapon Mining Claw Build | -11 -10 ------- Run | Yrd Mat Slots Evolved . | . . Power . | . . Propulsion . | . . Utility . | . . Weapon . | . . Parts Attached 10 | 7 3 Power 1 | 1 . Engine 1 | 1 . Core . | . . Reactor . | . . Propulsion 2 | 2 . Treads 2 | 2 . Leg . | . . Wheel . | . . Hover . | . . Flight . | . . Utility 3 | 1 2 Device . | . . Storage 2 | 1 1 Processor . | . . Hackware . | . . Protection 1 | . 1 Artifact . | . . Weapon 4 | 3 1 Energy Gun 2 | 2 . Energy Cannon . | . . Ballistic Gun 1 | 1 . Ballistic Cannon . | . . Launcher . | . . Special Weapon . | . . Impact Weapon . | . . Slashing Weapon 1 | . 1 Piercing Weapon . | . . Special Melee Weapon . | . . Unidentified Prototypes . | . . Parts Lost 5 | . 5 Power 1 | . 1 Propulsion 2 | . 2 Utility 1 | . 1 Weapon 1 | . 1 Highest Loss Streak 5 | . 5 To Critical Strikes . | . . Average Backups 5 | . 5 Power 1 | . 1 Propulsion 1 | . 1 Utility . | . . Weapon 2 | . 2 Tool/Special . | . . Unused Backups 8 | . 8 Power 3 | . 3 Propulsion 2 | . 2 Utility 1 | . 1 Weapon 1 | . 1 Tool/Special 1 | . 1 Average Slot Usage (%) 93 | . 93 Engine 13 | . 13 Treads 27 | . 27 Storage 14 | . 14 Protection 9 | . 9 Energy Gun 13 | . 13 Ballistic Gun 13 | . 13 Peak Build Rating 8 | 6 8 Average Rating 6 | 3 6 On Entrance 3 | . 6 Avg Prop Armor Cover (%) . | . . Naked Turns . | . . Heaviest Build 29 | 11 29 Greatest Support 40 | 40 40 Greatest Overweight (x) 8 | . 8 Average Overweight (x) . | . . Largest Inventory Capacity 15 | 8 15 Average Capacity 9 | 7 9 Most Carried 9 | 3 9 Average Carried 5 | . 5 Final Capacity 15 | 8 15 Final Carried 8 | 2 8 Class Distribution -------------------- 100% | Mutant Dominant Class ---------------- Mutant | -10/Materials Resources | -11 -10 ----------- Run | Yrd Mat Matter Collected 393 | 163 230 Remotely . | . . Salvage Created 1039 | . 1039 Parts 57 | . 57 Haulers Intercepted 2 | . 2 Recyclers Shooed 1 | . 1 Parts Field Recycled . | . . Retrieved Matter . | . . Parts Self-Destructed . | . . Prevented . | . . Parts Restored . | . . Kills | -11 -10 ------- Run | Yrd Mat Combat Hostiles Destroyed 16 | . 16 Guns 16 | . 16 Classes Destroyed 8 | . 8 Worker 2 | . 2 Builder 1 | . 1 Hauler 2 | . 2 Recycler 3 | . 3 Operator 2 | . 2 Watcher 1 | . 1 Swarmer 3 | . 3 Grunt 13 | . 13 Best Kill Streak 6 | . 6 Combat Bots Only 3 | . 3 Max Kills in Single Turn 1 | . 1 Gunslinging . | . . Exploded . | . . Melee . | . . Uniques/NPCs Destroyed . | . . Combat | -11 -10 -------- Run | Yrd Mat Hostile Shots Fired 110 | . 110 Missed 30 | . 30 Hits 80 | . 80 Projectile 80 | . 80 Damage Taken 874 | . 874 Core 258 | . 258 Absorbed by Shields . | . . Core Remaining (%) 100 | 100 . Volleys Fired 87 | . 87 Largest 2 | . 2 Hottest 70 | . 70 Shots Fired 169 | . 169 Gun 169 | . 169 Cannon . | . . Launcher . | . . Special . | . . Kinetic 85 | . 85 Thermal 84 | . 84 Explosive . | . . Electromagnetic . | . . Robot Hit Streak 9 | . 9 Robot Miss Streak 7 | . 7 Penetration Max . | . . Secondary Targets 6 | . 6 Max Gunslinging Chain 1 | . 1 Shots Hit Robots 108 | . 108 Core Hits 51 | . 51 Critical Kills . | . . Critical Parts Destroyed . | . . Critical Strikes 7 | . 7 Burn 7 | . 7 Melee Attacks 8 | . 8 Impact . | . . Slashing 8 | . 8 Piercing . | . . Sneak Attacks . | . . Combat Hostiles . | . . Follow-up Attacks . | . . Damage Inflicted 1266 | . 1266 Guns 1173 | . 1173 Cannons . | . . Explosions . | . . Melee 93 | . 93 Ramming . | . . Kinetic 466 | . 466 Thermal 707 | . 707 Explosive . | . . Electromagnetic . | . . Impact . | . . Slashing 93 | . 93 Piercing . | . . Highest Corruption . | . . Average Corruption . | . . Corruption Purged . | . . Corruption Blocked . | . . Overload Shots . | . . Overflow Damage . | . . Projectiles . | . . Explosions . | . . Melee . | . . Knockbacks . | . . Impact . | . . Kinetic . | . . Secondary . | . . Self-Inflicted Damage . | . . Shots . | . . Rammed . | . . Targets Rammed . | . . Kicked . | . . Crushed . | . . Highest Temperature 386 | . 386 Average Temperature 105 | . 105 Received Heat Transfer 426 | . 426 Effects 2 | . 2 Shutdowns 1 | . 1 Energy Bleed 1 | . 1 Siege Activations . | . . Martial Activations . | . . Shielding Activations . | . . Robots Disrupted . | . . Combat Hostiles . | . . Robots Corrupted . | . . Combat Hostiles . | . . Parts Fried . | . . Impact Corruptions . | . . Robots Melted . | . . Combat Hostiles . | . . Parts Melted 3 | . 3 Heat Transferred 2627 | . 2627 Parts Sabotaged . | . . Parts Stolen . | . . Parts Stripped . | . . Power Chain Reactions . | . . Alert | -11 -10 ------- Run | Yrd Mat Maximum Alert Level . | . . Low Security (%) 100 | 100 100 Level 1 . | . . Level 2 . | . . Level 3 . | . . Level 4 . | . . Level 5 . | . . High Security . | . . Max Security . | . . Peak Influence 125 | . 125 Initial . | . . Average 48 | . 53 Influence Increases 467 | . 467 Destroy 0b10 Robot/C 320 | . 320 Destroy 0b10 Robot/NC 55 | . 55 Destroy Leader 86 | . 86 Successful Hack 6 | . 6 Influence Decreases 394 | . 394 Time Decay 344 | . 344 Lost Part 50 | . 50 Squads Dispatched 6 | . 6 Investigation 3 | . 3 Extermination . | . . Reinforcement 3 | . 3 Assault . | . . Garrison . | . . Intercept . | . . Searches Triggered . | . . Construction Impeded . | . . Haulers Reinforced . | . . Active Scanning Responses . | . . Cargo Convoy Interrupts . | . . Stealth | -11 -10 --------- Run | Yrd Mat Distress Signals 3 | . 3 Communications Jammed . | . . Distress Signals . | . . Times Spotted 33 | . 33 Peak Tracking Total 7 | . 7 Tactical Retreats . | . . Traps | -11 -10 ------- Run | Yrd Mat Traps Triggered 2 | . 2 Indirectly . | . . Trap Hack Attempts . | . . Triggered . | . . Disarmed . | . . Reprogrammed . | . . Reused . | . . Traps Extracted . | . . Installed . | . . Triggered . | . . Machines | -11 -10 ---------- Run | Yrd Mat Machines Disabled . | . . Max in Single Turn . | . . Machines Repaired . | . . Machines Dismantled . | . . Machines Sabotaged . | . . Overloaded Fab Kills . | . . Hacking | -11 -10 --------- Run | Yrd Mat Machines Accessed 2 | . 2 Terminals 1 | . 1 Fabricators . | . . Repair Stations . | . . Recycling Units 1 | . 1 Scanalyzers . | . . Garrison Access . | . . Total Hacks 5 | . 5 Successful 2 | . 2 Failed 3 | . 3 Catastrophic 1 | . 1 Database Lockouts . | . . Manual 1 | . 1 Terminals 1 | . 1 Fabricators . | . . Repair Stations . | . . Recycling Units 4 | . 4 Scanalyzers . | . . Garrison Access . | . . Terminal Hacks . | . . Fabricator Hacks . | . . Repair Station Hacks . | . . Recycling Unit Hacks 1 | . 1 Retrieve Components 1 | . 1 Scanalyzer . | . . Garrison Access Hacks . | . . Unauthorized Hacks 1 | . 1 Terminals 1 | . 1 Operators 1 | . 1 Fabricators . | . . Repair Stations . | . . Recycling Units . | . . Scanalyzers . | . . Garrison Access . | . . Data Cores Recovered . | . . Used . | . . Hacking Detections 2 | . 2 Full Trace Events 1 | . 1 Feedback Events . | . . Feedback Blocked . | . . Robot Schematics Acquired . | . . Robots Built . | . . Authchips . | . . Time . | . . Total Robot Build Rating . | . . Part Schematics Acquired . | . . Parts Built . | . . Authchips . | . . Time . | . . Total Part Build Rating . | . . Part Studies Acquired . | . . Parts Repaired . | . . Time . | . . Parts Recycled . | . . Recycled Matter . | . . Retrieved Matter . | . . Retrieved Components 10 | . 10 Parts Scanalyzed . | . . Part Schematics Acquired . | . . Parts Damaged . | . . Bothacking | -11 -10 ------------ Run | Yrd Mat Used RIF Installer . | . . Robots Hacked . | . . Non-combat . | . . Combat . | . . Robot Hacks Applied . | . . Relay Couplers Released . | . . Fabnet Peak Effective % . | . . Robots Rewired . | . . Allies Hacked . | . . Hacks Repelled . | . . Allies | -11 -10 -------- Run | Yrd Mat Total Allies . | . . Largest Group . | . . Highest-Rated Group . | . . Highest-Rated Ally . | . . Total Orders . | . . Ally Attacks . | . . Total Damage . | . . Kills . | . . Allies Corrupted . | . . Allies Melted . | . . Intel | -11 -10 ------- Run | Yrd Mat Active Infowar (turns) . | . . Robot Analysis Total . | . . Derelict Logs Recovered . | . . Drone Launches . | . . Drone Recoveries . | . . Exploration | -11 -10 ------------- Run | Yrd Mat Turns Passed 1055 | 92 963 Spaces Moved 447 | 52 395 Core 3 | 2 1 Treads 444 | 50 394 Legs . | . . Wheels . | . . Hover . | . . Flight . | . . Fastest Speed 50 | 50 160 Average Speed 160 | 155 160 Slowest Speed 450 | 160 450 Overloaded Moves . | . . Propulsion Burnouts . | . . Robots Hopped . | . . Potential Cave-ins . | . . Cave-ins Triggered . | . . Exploration Rate (%) 27 | 3 51 Regions Visited 1 Branch Regions . Pre-discovered Areas . | . . Known Exits Taken . | . . Unknown Exits Taken 1 | 1 . Scrap Searched . | . . Spaces Dug . | . . Terrain Destroyed . | . . Melee . | . . Projectile . | . . AOE . | . . Terrain Rammed . | . . Walls Destroyed . | . . Machines Disabled . | . . Actions | -11 -10 --------- Run | Yrd Mat Total 619 | 61 558 Wait 51 | . 51 Move 446 | 51 395 Hop . | . . Pick Up 10 | 2 8 Fast Attach 7 | 6 1 Attach 3 | 1 2 Detach 3 | 1 2 Swap 1 | . 1 Drop 3 | . 3 Fire 87 | . 87 Melee 8 | . 8 Ram . | . . Kick . | . . Crush . | . . Escape Stasis . | . . Rewire . | . . Trap . | . . Miscellaneous . | . . Route ------- -11/Scrapyard -10/Materials (discovered 3 exits: [*Mat x2] / [*Min]) History --------- Turn | Location | Event 12 | -11/Scrapyard | Discovered new exit (range 13) 93 | -11/Scrapyard | Entered Materials 258 | -10/Materials | Discovered new exit (range 16) 303 | -10/Materials | Build established: Mutant 547 | -10/Materials | Discovered new exit (range 11) 910 | -10/Materials | Discovered new exit (range 5) 1031 | -10/Materials | Core integrity fell below 50% 1049 | -10/Materials | Core integrity fell below 20% 1056 | -10/Materials | Destroyed by G-34 Mercenary with Small Laser Last Messages --------------- Mercenary. 01002_ G-34 Mercenary suffers critical hit (Burn). 01002_ G-34 Mercenary destroyed. 01003_ Acquired 6 matter. 01006_ Acquired 1 matter. 01014_ Lgt. Armor Plating destroyed. 01016_ G-34 Mercenary destroyed. 01017_ Acquired 1 matter. 01019_ G-34 Mercenary suffers critical hit (Burn). 01020_ Acquired 1 matter. 01020_ Lgt. Treads destroyed. 01022_ Lgt. Assault Rifle destroyed. 01026_ Lgt. Treads destroyed. 01027_ Acquired 10 matter. 01029_ Acquired 8 matter. 01036_ Lgt. Ion Engine destroyed. 01037_ K-01 Serf collects debris. 01054_ K-01 Serf cleans the Hadron Collector. Map ----- +----------------------------------------------------+ | ##### ##? #??????? | | ###### #???# #??###??????? | | ###??# ##+##### #???????????? | | """ ?# # # #???????????? | | """ ?# # # #???????????? | | """ # # !! # #???????????? | | # # !! # #?#########?? | | + + ! # #?# ] ??? | | # # # #?# """ ?? | | ###### ######## ### """"" ? | | # """"" # | | % + """"" # | | % # """ # | | #######+####### ###### # # | | ### #?# #????# # # | | "# #?# #????# ##########? | | ""# #?# ###### ######????? | | !!# == #?# %*## #????? | | ""# = #?# %